fUST/lending_fUST_20250102
["ID","MTS","AMOUNT","RATE_DAILY","PERIOD"]
[347434116,1735805436547,-865.39,0.00019178,2]
[347434117,1735805436556,-500.0,0.00019178,2]
[347434118,1735805436565,-500.0,0.00019178,2]
[347434119,1735805436574,-1005.16,0.00019178,2]
[347434120,1735805436583,-500.0,0.00019178,2]
[347434121,1735805436592,-500.0,0.00019178,2]
[347434122,1735805436601,-500.0,0.00019178,2]
[347434123,1735805436610,-500.0,0.00019178,2]
[347434124,1735805436619,-515.98,0.00019178,2]
[347434125,1735805436628,-1134.18,0.00019178,2]
[347434126,1735805436637,-531.58,0.00019178,2]
[347434127,1735805436646,-994.7,0.00019178,2]
[347434128,1735805436655,-150.23,0.00019178,2]
[347434129,1735805436664,-504.61141509,0.00019178,2]
[347434130,1735805436673,-150.23,0.00019178,2]
[347434131,1735805436682,-500.0,0.00019178,2]
[347434132,1735805436691,-500.0,0.00019178,2]
[347434133,1735805436700,-500.0,0.00019178,2]
[347434134,1735805436709,-500.0,0.00019178,2]
[347434135,1735805436718,-500.0,0.00019178,2]
[347434136,1735805436727,-893.14,0.00019178,2]
[347434137,1735805436737,-766.44,0.00019178,2]
[347434138,1735805436746,-502.58356091,0.00019178,2]
[347434139,1735805436755,-500.0,0.00019178,2]
[347434140,1735805436764,-500.0,0.00019178,2]
[347434141,1735805436773,-269.510198,0.00019178,2]
[347434142,1735805436782,-269.510198,0.00019178,2]
[347434143,1735805436791,-500.0,0.00019178,2]
[347434144,1735805436802,-269.510198,0.00019178,2]
[347434145,1735805436811,-269.510198,0.00019178,2]
[347434146,1735805436820,-500.0,0.00019178,2]
[347434147,1735805436829,-269.510198,0.00019178,2]
[347434148,1735805436838,-269.510198,0.00019178,2]
[347434149,1735805436847,-269.510198,0.00019178,2]
[347434150,1735805436856,-269.510198,0.00019178,2]
[347434151,1735805436865,-500.0,0.00019178,2]
[347434152,1735805436874,-6134.51,0.00019178,2]
[347434153,1735805436883,-269.510198,0.00019178,2]
[347434154,1735805436893,-269.510198,0.00019178,2]
[347434155,1735805436902,-500.0,0.00019178,2]
[347434156,1735805436911,-557.7,0.00019178,2]
[347434157,1735805436920,-500.0,0.00019178,2]
[347434158,1735805436929,-577.45,0.00019178,2]
[347434159,1735805436939,-500.0,0.00019178,2]
[347434160,1735805436949,-150.37765105,0.00019178,2]
[347434161,1735805436958,-500.0,0.00019178,2]
[347434162,1735805436967,-512.51897346,0.00019178,2]
[347434163,1735805436976,-165.755622,0.00019178,2]
[347434164,1735805436986,-302.54622906,0.0001919,2]
[347434165,1735805436995,-501.78707364,0.000192,5]
[347434166,1735805437004,-13806.45694483,0.000192,2]
[347434167,1735805437013,-10846.51702306,0.000192,2]
[347434168,1735805437022,-10846.51702306,0.000192,2]
[347434169,1735805437031,-10846.51702306,0.000192,2]
[347434170,1735805437040,-151.0,0.000192,2]
[347434171,1735805437050,-151.0,0.000192,2]
[347434172,1735805437058,-151.0,0.000192,2]
[347434173,1735805437067,-151.0,0.000192,2]
[347434174,1735805437077,-256.895038,0.000192,2]
[347434175,1735805437085,-256.895038,0.000192,2]
[347434176,1735805437094,-165.495263,0.000192,2]
[347434177,1735805437104,-165.495263,0.000192,2]
[347434178,1735805437112,-165.495263,0.000192,2]
[347434179,1735805437121,-165.495263,0.000192,2]
[347434180,1735805437131,-164.305224,0.000192,2]
[347434181,1735805437140,-164.305224,0.000192,2]
[347434182,1735805437149,-164.305224,0.000192,2]
[347434183,1735805437158,-164.305224,0.000192,2]
[347434184,1735805437167,-151.0,0.000192,2]
[347434185,1735805437176,-151.0,0.000192,2]
[347434186,1735805437186,-269.510198,0.000192,2]
[347434187,1735805437196,-269.510198,0.000192,2]
[347434188,1735805437207,-269.510198,0.000192,2]
[347434189,1735805437216,-269.510198,0.000192,2]
[347434190,1735805437225,-10846.51702306,0.00019252,2]
[347434191,1735805437234,-151.0,0.00019252,2]
[347434192,1735805437244,-151.0,0.00019252,2]
[347434193,1735805437253,-256.895038,0.00019252,2]
[347434194,1735805437261,-256.895038,0.00019252,2]
[347434195,1735805437270,-174.14266582,0.00019285,2]
[347434196,1735805437279,-618.0,0.000193,2]
[347434197,1735805437287,-302.54622906,0.0001938,2]
[347434198,1735805437296,-500.0,0.00019452,2]
[347434199,1735805437304,-150.23,0.00019452,2]
[347434200,1735805437313,-200.65694961,0.00019452,2]
[347434201,1735805437322,-151.1249699,0.00019452,2]
[347434202,1735805437331,-150.23,0.00019452,2]
[347434203,1735805437340,-500.0,0.00019452,2]
[347434204,1735805437349,-533.36320484,0.00019452,2]
[347434205,1735805437358,-487.550763,0.00019452,2]
[347434206,1735805437366,-487.550763,0.00019452,2]
[347434207,1735805437375,-487.550763,0.00019452,2]
[347434208,1735805437385,-487.550763,0.00019452,2]
[347434209,1735805437393,-487.550763,0.00019452,2]
[347434210,1735805437402,-487.550763,0.00019452,2]
[347434211,1735805437411,-487.550763,0.00019452,2]
[347434212,1735805437420,-487.550763,0.00019452,2]
[347434213,1735805437429,-487.550763,0.00019452,2]
[347434214,1735805437439,-487.550763,0.00019452,2]
[347434215,1735805437448,-487.550763,0.00019452,2]
[347434216,1735805437457,-487.550763,0.00019452,2]
[347434217,1735805437466,-151.0,0.00019452,2]
[347434218,1735805437475,-151.0,0.00019452,2]
[347434219,1735805437484,-151.0,0.00019452,2]
[347434220,1735805437493,-151.0,0.00019452,2]
[347434221,1735805437501,-151.0,0.00019452,2]
[347434222,1735805437510,-250.20075,0.00019452,2]
[347434223,1735805437519,-500.0,0.00019452,3]
[347434224,1735805437528,-504.14020256,0.00019452,3]
[347434225,1735805437537,-503.8261317,0.00019452,3]
[347434226,1735805437545,-423.05316112,0.00019452,3]
[347434227,1735805437555,-500.0,0.00019452,3]
[347434228,1735805437564,-500.0,0.00019452,3]
[347434229,1735805437573,-500.0,0.00019452,3]
[347434230,1735805437582,-500.0,0.00019452,3]
[347434231,1735805437591,-1107.781463,0.00019452,2]
[347434232,1735805437599,-1107.781456,0.00019452,2]
[347434233,1735805437609,-500.0,0.00019452,3]
[347434234,1735805437618,-500.0,0.00019452,3]
[347434235,1735805437627,-500.0,0.00019452,3]
[347434236,1735805437636,-500.0,0.00019452,3]
[347434237,1735805437644,-500.0,0.00019452,3]
[347434238,1735805437654,-1317.37,0.00019452,3]
[347434239,1735805437663,-500.0,0.00019452,3]
[347434240,1735805437672,-151.0,0.00019452,2]
[347434241,1735805437681,-152.980015,0.00019452,2]
[347434242,1735805437690,-503.23126151,0.00019452,3]
[347434243,1735805437700,-500.0,0.00019452,3]
[347434244,1735805437709,-500.0,0.00019452,3]
[347434245,1735805437718,-500.0,0.00019452,3]
[347434246,1735805437728,-500.0,0.00019452,3]
[347434247,1735805437737,-501.96671828,0.00019452,3]
[347434248,1735805437746,-500.0,0.00019452,3]
[347434249,1735805437755,-500.0,0.00019452,3]
[347434250,1735805437764,-500.0,0.00019452,3]
[347434251,1735805437773,-508.51384139,0.00019452,3]
[347434252,1735805437782,-500.0,0.00019452,3]
[347434253,1735805437791,-500.0,0.00019452,3]
[347434254,1735805437801,-500.0,0.00019452,3]
[347434255,1735805437812,-500.0,0.00019452,3]
[347434256,1735805437821,-503.14722397,0.00019452,3]
[347434257,1735805437830,-500.0,0.00019452,3]
[347434258,1735805437839,-643.53438261,0.00019452,3]
[347434259,1735805437848,-500.0,0.00019452,3]
[347434260,1735805437857,-500.0,0.00019452,3]
[347434261,1735805437866,-500.0,0.00019452,3]
[347434262,1735805437875,-500.0,0.00019452,3]
[347434263,1735805437884,-503.0978301,0.00019452,3]
[347434264,1735805437893,-289.31939796,0.00019452,3]
[347434265,1735805437902,-528.61,0.00019452,3]
[347434266,1735805437911,-500.0,0.00019452,3]
[347434267,1735805437920,-859.15,0.00019452,3]
[347434268,1735805437930,-809.43,0.00019452,3]
[347434269,1735805437940,-500.0,0.00019452,3]
[347434270,1735805437949,-500.0,0.00019452,3]
[347434271,1735805437959,-500.0,0.00019452,3]
[347434272,1735805437968,-198.46954733,0.00019452,3]
[347434273,1735805437977,-2233.57,0.00019452,3]
[347434274,1735805437986,-564.33,0.00019452,3]
[347434275,1735805437995,-500.0,0.00019452,3]
[347434277,1735805438004,-796.73,0.00019452,3]
[347434278,1735805438013,-531.59,0.00019452,3]
[347434279,1735805438023,-500.0,0.00019452,3]
[347434281,1735805438032,-151.0,0.00019452,2]
[347434283,1735805438040,-151.0,0.00019452,2]
[347434284,1735805438049,-197.339406,0.00019452,2]
[347434285,1735805438058,-500.0,0.00019452,3]
[347434286,1735805438067,-500.0,0.00019452,3]
[347434287,1735805438075,-500.0,0.00019452,3]
[347434288,1735805438084,-500.0,0.00019452,3]
[347434289,1735805438093,-500.0,0.00019452,3]
[347434290,1735805438102,-529.86274165,0.00019452,3]
[347434291,1735805438111,-500.0,0.00019452,3]
[347434293,1735805438119,-500.0,0.00019452,3]
[347434295,1735805438128,-500.0,0.00019452,3]
[347434296,1735805438137,-500.0,0.00019452,3]
[347434297,1735805438147,-500.0,0.00019452,3]
[347434298,1735805438155,-500.0,0.00019452,3]
[347434299,1735805438164,-151.0,0.00019452,2]
[347434300,1735805438174,-151.0,0.00019452,2]
[347434301,1735805438183,-299.844643,0.00019452,2]
[347434302,1735805438192,-501.23718737,0.00019452,3]
[347434303,1735805438206,-256.895038,0.00019452,2]
[347434304,1735805438215,-256.895038,0.00019452,2]
[347434305,1735805438225,-500.0,0.00019452,3]
[347434306,1735805438233,-256.895038,0.00019452,2]
[347434307,1735805438243,-256.895038,0.00019452,2]
[347434308,1735805438252,-256.895038,0.00019452,2]
[347434309,1735805438260,-256.895046,0.00019452,2]
[347434311,1735805438271,-458.62902157,0.00019452,3]
[347434313,1735805438280,-518.07,0.00019452,3]
[347434314,1735805438290,-500.0,0.00019452,3]
[347434316,1735805438299,-504.043751,0.00019452,3]
[347434318,1735805438308,-500.0,0.00019452,3]
[347434319,1735805438317,-500.0,0.00019452,3]
[347434320,1735805438327,-500.0,0.00019452,3]
[347434322,1735805438337,-165.495263,0.00019452,2]
[347434324,1735805438346,-2210.53,0.00019452,3]
[347434325,1735805438355,-165.495263,0.00019452,2]
[347434326,1735805438364,-165.495263,0.00019452,2]
[347434327,1735805438373,-165.495263,0.00019452,2]
[347434329,1735805438382,-500.0,0.00019452,3]
[347434331,1735805438392,-165.495263,0.00019452,2]
[347434332,1735805438401,-165.495263,0.00019452,2]
[347434334,1735805438410,-165.495263,0.00019452,2]
[347434335,1735805438419,-165.495262,0.00019452,2]
[347434336,1735805438428,-502.0443741,0.00019452,3]
[347434337,1735805438438,-500.0,0.00019452,3]
[347434338,1735805438447,-500.0,0.00019452,3]
[347434339,1735805438455,-636.31,0.00019452,3]
[347434340,1735805438464,-944.78,0.00019452,3]
[347434341,1735805438473,-505.41283512,0.00019452,3]
[347434342,1735805438482,-500.0,0.00019452,3]
[347434343,1735805438491,-500.0,0.00019452,3]
[347434344,1735805438500,-164.305224,0.00019452,2]
[347434345,1735805438508,-164.305224,0.00019452,2]
[347434346,1735805438517,-164.305224,0.00019452,2]
[347434347,1735805438526,-528.12,0.00019452,3]
[347434348,1735805438535,-500.0,0.00019452,3]
[347434349,1735805438544,-164.305224,0.00019452,2]
[347434350,1735805438553,-164.305224,0.00019452,2]
[347434351,1735805438562,-164.305234,0.00019452,2]
[347434352,1735805438571,-500.0,0.00019452,3]
[347434353,1735805438580,-500.0,0.00019452,3]
[347434354,1735805438589,-500.0,0.00019452,3]
[347434355,1735805438598,-500.0,0.00019452,3]
[347434356,1735805438607,-506.21,0.00019452,3]
[347434357,1735805438616,-500.0,0.00019452,3]
[347434358,1735805438625,-500.0,0.00019452,3]
[347434359,1735805438634,-674.19,0.00019452,3]
[347434360,1735805438642,-827.43,0.00019452,3]
[347434361,1735805438652,-580.44,0.00019452,3]
[347434362,1735805438661,-500.0,0.00019452,3]
[347434363,1735805438670,-511.44913008,0.00019452,3]
[347434364,1735805438679,-500.0,0.00019452,3]
[347434365,1735805438689,-500.0,0.00019452,3]
[347434366,1735805438698,-500.0,0.00019452,3]
[347434367,1735805438707,-500.0,0.00019452,3]
[347434368,1735805438716,-151.0,0.00019452,2]
[347434369,1735805438726,-151.0,0.00019452,2]
[347434370,1735805438735,-267.789552,0.00019452,2]
[347434371,1735805438744,-500.0,0.00019452,3]
[347434372,1735805438753,-1853.26,0.00019452,3]
[347434373,1735805438762,-588.43,0.00019452,3]
[347434374,1735805438771,-500.0,0.00019452,3]
[347434375,1735805438779,-500.0,0.00019452,3]
[347434376,1735805438788,-500.0,0.00019452,3]
[347434377,1735805438799,-500.0,0.00019452,3]
[347434378,1735805438808,-500.0,0.00019452,2]
[347434379,1735805438817,-603.15,0.00019452,3]
[347434380,1735805438826,-500.0,0.00019452,3]
[347434381,1735805438834,-22170.41,0.00019452,3]
[347434382,1735805438843,-500.0,0.00019452,3]
[347434383,1735805438852,-500.0,0.00019452,3]
[347434384,1735805438861,-500.0,0.00019452,3]
[347434385,1735805438870,-1102.74,0.00019452,3]
[347434386,1735805438879,-3028.19,0.00019452,3]
[347434387,1735805438888,-753.34,0.00019452,3]
[347434388,1735805438897,-1382.24,0.00019452,3]
[347434389,1735805438906,-5252.62,0.00019452,3]
[347434390,1735805438915,-500.0,0.00019452,3]
[347434391,1735805438924,-500.0,0.00019452,3]
[347434392,1735805438934,-1287.97,0.00019452,3]
[347434393,1735805438944,-975.07,0.00019452,3]
[347434394,1735805438953,-500.0,0.00019452,3]
[347434395,1735805438963,-500.0,0.00019452,3]
[347434396,1735805438972,-500.0,0.00019452,3]
[347434397,1735805438981,-500.0,0.00019452,3]
[347434398,1735805438990,-500.0,0.00019452,3]
[347434399,1735805438998,-201.17480925,0.00019452,3]
[347434400,1735805439007,-500.0,0.00019452,3]
[347434401,1735805439017,-507.41168509,0.00019452,3]
[347434402,1735805439026,-661.76,0.00019452,3]
[347434403,1735805439035,-1278.07,0.00019452,3]
[347434404,1735805439045,-500.0,0.00019452,3]
[347434405,1735805439054,-1068.33,0.00019452,2]
[347434406,1735805439063,-502.64686719,0.00019452,3]
[347434407,1735805439072,-500.0,0.00019452,3]
[347434408,1735805439081,-529.68,0.00019452,3]
[347434409,1735805439091,-502.37379421,0.00019452,3]
[347434410,1735805439100,-500.0,0.00019452,3]
[347434411,1735805439109,-500.0,0.00019452,3]
[347434412,1735805439219,-580.09,0.00019452,3]
[347434413,1735805439228,-1620.94,0.00019452,3]
[347434414,1735805439237,-500.0,0.00019452,3]
[347434415,1735805439247,-500.0,0.00019452,3]
[347434416,1735805439256,-504.46116414,0.00019452,3]
[347434417,1735805439265,-638.26868532,0.00019452,3]
[347434418,1735805439275,-500.0,0.00019452,3]
[347434419,1735805439285,-500.0,0.00019452,3]
[347434420,1735805439294,-1571.24,0.00019452,3]
[347434421,1735805439303,-1135.2,0.00019452,3]
[347434422,1735805439312,-500.0,0.00019452,3]
[347434423,1735805439321,-865.39,0.00019452,3]
[347434424,1735805439330,-500.0,0.00019452,3]
[347434425,1735805439339,-500.0,0.00019452,3]
[347434426,1735805439348,-1005.16,0.00019452,3]
[347434427,1735805439357,-500.0,0.00019452,3]
[347434428,1735805439366,-500.0,0.00019452,3]
[347434429,1735805439375,-500.0,0.00019452,3]
[347434430,1735805439384,-515.98,0.00019452,3]
[347434431,1735805439393,-1134.18,0.00019452,3]
[347434432,1735805439403,-531.58,0.00019452,3]
[347434433,1735805439412,-994.7,0.00019452,3]
[347434434,1735805439421,-500.0,0.00019452,3]
[347434435,1735805439431,-307.26674055,0.00019452,3]
[347434436,1735805439440,-507.52368693,0.00019452,3]
[347434437,1735805439449,-500.0,0.00019452,3]
[347434438,1735805439458,-893.14,0.00019452,3]
[347434439,1735805439467,-766.44,0.00019452,3]
[347434440,1735805439477,-500.0,0.00019452,3]
[347434441,1735805439486,-500.0,0.00019452,3]
[347434442,1735805439495,-500.0,0.00019452,3]
[347434443,1735805439504,-500.0,0.00019452,3]
[347434444,1735805439513,-269.510198,0.00019452,2]
[347434445,1735805439522,-269.510198,0.00019452,2]
[347434446,1735805439531,-269.510198,0.00019452,2]
[347434447,1735805439540,-500.0,0.00019452,3]
[347434448,1735805439549,-500.0,0.00019452,3]
[347434449,1735805439558,-557.7,0.00019452,3]
[347434450,1735805439568,-6134.51,0.00019452,3]
[347434451,1735805439577,-269.510198,0.00019452,2]
[347434452,1735805439587,-269.510198,0.00019452,2]
[347434453,1735805439596,-269.510196,0.00019452,2]
[347434454,1735805439605,-500.0,0.00019452,3]
[347434455,1735805439614,-577.45,0.00019452,3]
[347434456,1735805439623,-153.09150352,0.00019452,3]
[347434457,1735805439633,-174.14266582,0.00019493,2]
[347434458,1735805439643,-437.03,0.000195,2]
[347434459,1735805439653,-302.54622906,0.0001957,2]
[347434460,1735805439662,-500.0,0.00019583,2]
[347434461,1735805439672,-420.0,0.00019614,2]
[347434462,1735805439681,-174.14266582,0.000197,2]
[347434463,1735805439692,-648.09979266,0.00019725,2]
[347434464,1735805439702,-1211.94342769,0.00019726,2]
[347434465,1735805439711,-23785.3005907,0.00019726,2]
[347434466,1735805439720,-150.23,0.00019726,2]
[347434467,1735805439731,-500.0,0.00019726,2]
[347434468,1735805439741,-487.550763,0.00019726,2]
[347434469,1735805439751,-487.550763,0.00019726,2]
[347434470,1735805439760,-487.550763,0.00019726,2]
[347434471,1735805439769,-487.550763,0.00019726,2]
[347434472,1735805439778,-487.550763,0.00019726,2]
[347434473,1735805439789,-487.550763,0.00019726,2]
[347434474,1735805439799,-487.550763,0.00019726,2]
[347434475,1735805439808,-487.550758,0.00019726,2]
[347434476,1735805439817,-500.0,0.00019726,3]
[347434477,1735805439826,-500.0,0.00019726,3]
[347434478,1735805439835,-318.12799521,0.00019726,3]
[347434479,1735805439844,-500.0,0.00019726,3]
[347434480,1735805439853,-500.0,0.00019726,3]
[347434481,1735805439862,-500.0,0.00019726,3]
[347434482,1735805439871,-500.0,0.00019726,3]
[347434483,1735805439881,-500.0,0.00019726,3]
[347434484,1735805439891,-1317.37,0.00019726,3]
[347434485,1735805439900,-500.0,0.00019726,3]
[347434486,1735805439910,-500.0,0.00019726,3]
[347434487,1735805439919,-443.02053533,0.00019726,3]
[347434488,1735805439928,-500.0,0.00019726,3]
[347434489,1735805439937,-500.0,0.00019726,3]
[347434490,1735805439946,-500.0,0.00019726,3]
[347434491,1735805439955,-608.34942333,0.00019726,3]
[347434492,1735805439964,-502.83384756,0.00019726,3]
[347434493,1735805439974,-500.0,0.00019726,3]
[347434494,1735805439983,-500.0,0.00019726,3]
[347434495,1735805439991,-500.0,0.00019726,3]
[347434496,1735805440000,-500.0,0.00019726,3]
[347434497,1735805440009,-545.59944576,0.00019726,3]
[347434499,1735805440018,-500.0,0.00019726,3]
[347434500,1735805440027,-500.0,0.00019726,3]
[347434502,1735805440036,-500.0,0.00019726,3]
[347434503,1735805440045,-528.61,0.00019726,3]
[347434504,1735805440055,-500.0,0.00019726,3]
[347434505,1735805440064,-859.15,0.00019726,3]
[347434506,1735805440073,-809.43,0.00019726,3]
[347434507,1735805440083,-500.0,0.00019726,3]
[347434508,1735805440092,-487.97274998,0.00019726,3]
[347434509,1735805440101,-500.0,0.00019726,3]
[347434510,1735805440110,-2233.57,0.00019726,3]
[347434511,1735805440119,-564.33,0.00019726,3]
[347434512,1735805440128,-500.0,0.00019726,3]
[347434513,1735805440137,-796.73,0.00019726,3]
[347434514,1735805440146,-531.59,0.00019726,3]
[347434515,1735805440155,-500.0,0.00019726,3]
[347434517,1735805440164,-500.0,0.00019726,3]
[347434519,1735805440173,-500.0,0.00019726,3]
[347434520,1735805440183,-500.0,0.00019726,3]
[347434521,1735805440192,-500.0,0.00019726,3]
[347434522,1735805440206,-500.0,0.00019726,3]
[347434523,1735805440215,-503.52365039,0.00019726,3]
[347434524,1735805440225,-500.0,0.00019726,3]
[347434525,1735805440234,-500.0,0.00019726,3]
[347434526,1735805440244,-516.59196204,0.00019726,3]
[347434527,1735805440253,-509.7152433,0.00019726,3]
[347434528,1735805440263,-500.0,0.00019726,3]
[347434529,1735805440272,-500.0,0.00019726,3]
[347434530,1735805440282,-518.07,0.00019726,3]
[347434531,1735805440292,-500.0,0.00019726,3]
[347434532,1735805440303,-500.0,0.00019726,3]
[347434533,1735805440312,-500.0,0.00019726,3]
[347434534,1735805440321,-500.0,0.00019726,3]
[347434535,1735805440332,-2210.53,0.00019726,3]
[347434536,1735805440341,-500.0,0.00019726,3]
[347434537,1735805440350,-625.56,0.00019726,3]
[347434538,1735805440360,-500.0,0.00019726,3]
[347434539,1735805440369,-636.31,0.00019726,3]
[347434540,1735805440379,-944.78,0.00019726,3]
[347434541,1735805440388,-500.0,0.00019726,3]
[347434542,1735805440397,-500.0,0.00019726,3]
[347434544,1735805440406,-528.12,0.00019726,3]
[347434545,1735805440415,-500.0,0.00019726,3]
[347434546,1735805440424,-617.85879928,0.00019726,3]
[347434547,1735805440434,-500.0,0.00019726,3]
[347434548,1735805440443,-500.0,0.00019726,3]
[347434549,1735805440452,-500.0,0.00019726,3]
[347434550,1735805440462,-506.21,0.00019726,3]
[347434551,1735805440471,-500.0,0.00019726,3]
[347434552,1735805440481,-500.0,0.00019726,3]
[347434553,1735805440491,-674.19,0.00019726,3]
[347434554,1735805440501,-827.43,0.00019726,3]
[347434555,1735805440510,-580.44,0.00019726,3]
[347434556,1735805440519,-500.0,0.00019726,3]
[347434557,1735805440529,-505.23861557,0.00019726,3]
[347434558,1735805440538,-500.0,0.00019726,3]
[347434559,1735805440548,-500.0,0.00019726,3]
[347434560,1735805440557,-500.0,0.00019726,3]
[347434561,1735805440566,-500.0,0.00019726,3]
[347434562,1735805440575,-1853.26,0.00019726,3]
[347434563,1735805440585,-588.43,0.00019726,3]
[347434564,1735805440594,-500.0,0.00019726,3]
[347434565,1735805440605,-500.0,0.00019726,3]
[347434566,1735805440615,-500.0,0.00019726,3]
[347434567,1735805440624,-500.0,0.00019726,3]
[347434568,1735805440634,-500.0,0.00019726,2]
[347434569,1735805440644,-603.15,0.00019726,3]
[347434570,1735805440653,-500.0,0.00019726,3]
[347434571,1735805440662,-22170.41,0.00019726,3]
[347434572,1735805440672,-500.0,0.00019726,3]
[347434573,1735805440682,-500.0,0.00019726,3]
[347434574,1735805440693,-500.0,0.00019726,3]
[347434575,1735805440703,-1102.74,0.00019726,3]
[347434576,1735805440712,-3028.19,0.00019726,3]
[347434577,1735805440722,-753.34,0.00019726,3]
[347434578,1735805440732,-1382.24,0.00019726,3]
[347434579,1735805440742,-5252.62,0.00019726,3]
[347434580,1735805440752,-500.0,0.00019726,3]
[347434581,1735805440762,-500.0,0.00019726,3]
[347434582,1735805440771,-1287.97,0.00019726,3]
[347434583,1735805440781,-975.07,0.00019726,3]
[347434584,1735805440790,-500.0,0.00019726,3]
[347434585,1735805440799,-500.0,0.00019726,3]
[347434586,1735805440809,-661.76,0.00019726,3]
[347434587,1735805440818,-1278.07,0.00019726,3]
[347434588,1735805440827,-500.0,0.00019726,3]
[347434589,1735805440837,-1068.33,0.00019726,2]
[347434590,1735805440846,-500.0,0.00019726,3]
[347434591,1735805440856,-500.0,0.00019726,3]
[347434592,1735805440865,-500.0,0.00019726,3]
[347434593,1735805440875,-580.09,0.00019726,3]
[347434594,1735805440884,-1620.94,0.00019726,3]
[347434595,1735805440894,-500.0,0.00019726,3]
[347434596,1735805440903,-500.0,0.00019726,3]
[347434597,1735805440913,-500.0,0.00019726,3]
[347434598,1735805440922,-1571.24,0.00019726,3]
[347434599,1735805440931,-500.0,0.00019726,3]
[347434600,1735805440941,-1135.2,0.00019726,3]
[347434601,1735805440951,-500.0,0.00019726,3]
[347434602,1735805440960,-865.39,0.00019726,3]
[347434603,1735805440969,-500.0,0.00019726,3]
[347434604,1735805440979,-500.0,0.00019726,3]
[347434605,1735805440989,-1005.16,0.00019726,3]
[347434606,1735805440998,-500.0,0.00019726,3]
[347434607,1735805441009,-500.0,0.00019726,3]
[347434608,1735805441018,-500.0,0.00019726,3]
[347434609,1735805441028,-1134.18,0.00019726,3]
[347434610,1735805441037,-515.98,0.00019726,3]
[347434611,1735805441046,-531.58,0.00019726,3]
[347434612,1735805441055,-994.7,0.00019726,3]
[347434613,1735805441064,-500.0,0.00019726,3]
[347434614,1735805441074,-500.0,0.00019726,3]
[347434615,1735805441083,-893.14,0.00019726,3]
[347434616,1735805441092,-766.44,0.00019726,3]
[347434617,1735805441101,-500.0,0.00019726,3]
[347434618,1735805441110,-500.0,0.00019726,3]
[347434619,1735805441119,-500.0,0.00019726,3]
[347434620,1735805441129,-500.0,0.00019726,3]
[347434621,1735805441138,-500.0,0.00019726,3]
[347434622,1735805441146,-557.7,0.00019726,3]
[347434623,1735805441155,-500.0,0.00019726,3]
[347434624,1735805441165,-6134.51,0.00019726,3]
[347434625,1735805441175,-500.0,0.00019726,3]
[347434626,1735805441184,-577.45,0.00019726,3]
[347434627,1735805441194,-302.54622906,0.0001976,2]
[347434628,1735805441208,-500.0,0.00019773,2]
[347434629,1735805441218,-7162.44583545,0.0001978,7]
[347434630,1735805441227,-11604.11,0.000198,2]
[347434631,1735805441237,-9406.34,0.000198,2]
[347434632,1735805441246,-3610.54,0.000198,2]
[347434633,1735805441256,-194.0,0.00019862,5]
[347434634,1735805441265,-151.0,0.000199,2]